Workbook

Sheet Instructions
A1: INSTRUCTIONS
B3: 1. OPEN the Excel Document attached (RunnersNames2015).
B4: 2. Select the sheet, "Pupil List"
B5: 3. Select your school name in the box D7, this will automatically select your school code and prepare your numbers.
B6: 4. Each school may use numbers from 01 to 99
B9: 5. Start to enter your students | F9: 1. You may copy names from last years spreadsheet
F10: 2. Remove any students who have left (ie last years year 6 or 13), or who are no longer running
F11: 3. Enter the school year for each runner and whether boy or girl.
F12: 4. Add any new runners to the spaces that are free.
B14: 6. Enter the email adress for the main school contact, and update the date each time you change the list
B16: 7. Print a copy of the list and bring it to each race, so you can ensure students use the correct numbers.
B18: 8. Use the inbuilt function to print numbers you can attach to runners. This is set to print two numbers per A4 sheet.
B19: Set the range of numbers you want to print in boxes E3 and E4
B20: This will format the numbers to make recording at the finish line easier, and also discretely print the runners name in the bottom right corner.
B21: You may need to select "Enable Content" at the top when you open the file for this function to work.
B23: 9. Please then save the document titled " YOUR SCHOOL NAME RunnersNames2015"
B24: eg "ParksideSchool RunnersNames2015" and email to geofft@cotec.freeserve.co.uk attaching the saved file.
B26: 10. To add new runners during the year choose an unused number. Do not change the number of any runner who has run. They must keep the same number throughout this season.
B27: Email the changed list before the start of each race.
A29: Rev 2 29/09/2015

Sheet Pupil List
D3: Start Number | E3: 1
D4: End Number | E4: 2
C6: Date Updated | D6: 2015-09-09
C7: School Name | D7: Not Listed | E7: Code | F7: =VLOOKUP(D7,'School List'!B3:C42,2,FALSE) -> xx
C8: School Contact
A10: Number | B10: Runners Number | C10: Pupil Name | D10: School | E10: Year | F10: Gender
A11: 1 | B11: =CONCATENATE(Code,TEXT(A11,"00")) -> xx01 | D11: =School -> Not Listed
A12: 2 | B12: xx02 | D12: Not Listed
A13: 3 | B13: xx03 | D13: Not Listed
A14: 4 | B14: xx04 | D14: Not Listed
A15: 5 | B15: xx05 | D15: Not Listed
A16: 6 | B16: xx06 | D16: Not Listed
A17: 7 | B17: xx07 | D17: Not Listed
A18: 8 | B18: xx08 | D18: Not Listed
A19: 9 | B19: xx09 | D19: Not Listed
A20: 10 | B20: xx10 | D20: Not Listed
A21: 11 | B21: xx11 | D21: Not Listed
A22: 12 | B22: xx12 | D22: Not Listed
A23: 13 | B23: xx13 | D23: Not Listed
A24: 14 | B24: xx14 | D24: Not Listed
A25: 15 | B25: xx15 | D25: Not Listed
A26: 16 | B26: xx16 | D26: Not Listed
A27: 17 | B27: xx17 | D27: Not Listed
A28: 18 | B28: xx18 | D28: Not Listed
A29: 19 | B29: xx19 | D29: Not Listed
A30: 20 | B30: xx20 | D30: Not Listed
A31: 21 | B31: xx21 | D31: Not Listed
A32: 22 | B32: xx22 | D32: Not Listed
A33: 23 | B33: xx23 | D33: Not Listed
A34: 24 | B34: xx24 | D34: Not Listed
A35: 25 | B35: xx25 | D35: Not Listed
A36: 26 | B36: xx26 | D36: Not Listed
A37: 27 | B37: xx27 | D37: Not Listed
A38: 28 | B38: xx28 | D38: Not Listed
A39: 29 | B39: xx29 | D39: Not Listed
A40: 30 | B40: xx30 | D40: Not Listed
A41: 31 | B41: xx31 | D41: Not Listed
A42: 32 | B42: xx32 | D42: Not Listed
A43: 33 | B43: =CONCATENATE(Code,TEXT(A43,"00")) -> xx33 | D43: =School -> Not Listed
A44: 34 | B44: xx34 | D44: Not Listed
A45: 35 | B45: xx35 | D45: Not Listed
A46: 36 | B46: xx36 | D46: Not Listed
A47: 37 | B47: xx37 | D47: Not Listed
A48: 38 | B48: xx38 | D48: Not Listed
A49: 39 | B49: xx39 | D49: Not Listed
A50: 40 | B50: xx40 | D50: Not Listed
A51: 41 | B51: xx41 | D51: Not Listed
A52: 42 | B52: xx42 | D52: Not Listed
A53: 43 | B53: xx43 | D53: Not Listed
A54: 44 | B54: xx44 | D54: Not Listed
A55: 45 | B55: xx45 | D55: Not Listed
A56: 46 | B56: xx46 | D56: Not Listed
A57: 47 | B57: xx47 | D57: Not Listed
A58: 48 | B58: xx48 | D58: Not Listed
A59: 49 | B59: xx49 | D59: Not Listed
A60: 50 | B60: xx50 | D60: Not Listed
A61: 51 | B61: xx51 | D61: Not Listed
A62: 52 | B62: xx52 | D62: Not Listed
A63: 53 | B63: xx53 | D63: Not Listed
A64: 54 | B64: xx54 | D64: Not Listed
A65: 55 | B65: xx55 | D65: Not Listed
A66: 56 | B66: xx56 | D66: Not Listed
A67: 57 | B67: xx57 | D67: Not Listed
A68: 58 | B68: xx58 | D68: Not Listed
A69: 59 | B69: xx59 | D69: Not Listed
A70: 60 | B70: xx60 | D70: Not Listed
A71: 61 | B71: xx61 | D71: Not Listed
A72: 62 | B72: xx62 | D72: Not Listed
A73: 63 | B73: xx63 | D73: Not Listed
A74: 64 | B74: xx64 | D74: Not Listed
A75: 65 | B75: =CONCATENATE(Code,TEXT(A75,"00")) -> xx65 | D75: =School -> Not Listed
A76: 66 | B76: xx66 | D76: Not Listed
A77: 67 | B77: xx67 | D77: Not Listed
A78: 68 | B78: xx68 | D78: Not Listed
A79: 69 | B79: xx69 | D79: Not Listed
A80: 70 | B80: xx70 | D80: Not Listed
A81: 71 | B81: xx71 | D81: Not Listed
A82: 72 | B82: xx72 | D82: Not Listed
A83: 73 | B83: xx73 | D83: Not Listed
A84: 74 | B84: xx74 | D84: Not Listed
A85: 75 | B85: xx75 | D85: Not Listed
A86: 76 | B86: xx76 | D86: Not Listed
A87: 77 | B87: xx77 | D87: Not Listed
A88: 78 | B88: xx78 | D88: Not Listed
A89: 79 | B89: xx79 | D89: Not Listed
A90: 80 | B90: xx80 | D90: Not Listed
A91: 81 | B91: xx81 | D91: Not Listed
A92: 82 | B92: xx82 | D92: Not Listed
A93: 83 | B93: xx83 | D93: Not Listed
A94: 84 | B94: xx84 | D94: Not Listed
A95: 85 | B95: xx85 | D95: Not Listed
A96: 86 | B96: xx86 | D96: Not Listed
A97: 87 | B97: xx87 | D97: Not Listed
A98: 88 | B98: xx88 | D98: Not Listed
A99: 89 | B99: xx89 | D99: Not Listed
A100: 90 | B100: xx90 | D100: Not Listed
A101: 91 | B101: xx91 | D101: Not Listed
A102: 92 | B102: xx92 | D102: Not Listed
A103: 93 | B103: xx93 | D103: Not Listed
A104: 94 | B104: xx94 | D104: Not Listed
A105: 95 | B105: xx95 | D105: Not Listed
A106: 96 | B106: xx96 | D106: Not Listed
A107: 97 | B107: =CONCATENATE(Code,TEXT(A107,"00")) -> xx97 | D107: Not Listed
A108: 98 | B108: xx98 | D108: Not Listed
A109: 99 | B109: xx99 | D109: Not Listed

Sheet Print Template
A1: Keighley and Craven Schools Cross Country 2015-2016
A3: xx01
A7: Year ?? ??s
A9: Keighley and Craven Schools Cross Country 2015-2016
A11: xx02
A15: Year ?? s

Sheet School List
C1: School code
B3: Not Listed | C3: xx
A4: 1 | B4: Bingley Grammar | C4: Bi
A5: 2 | B5: Bradford GS | C5: BGS
A6: 3 | B6: Ermysted's GS | C6: E
A7: 4 | B7: Holy Family | C7: HF
A8: 5 | B8: Ilkley GS | C8: IGS
A9: 6 | B9: Oakbank | C9: Oak
A10: 7 | B10: Parkside | C10: P
A11: 8 | B11: Skipton Girls HS | C11: SGH
A12: 9 | B12: South Craven | C12: SC
A13: 10 | B13: Thornton GS | C13: Th
A14: 11 | B14: Grange | C14: G
A15: 12 | B15: Upper Wharfdale | C15: UW
A16: 1 | B16: Baildon CE | C16: BCE
A17: 2 | B17: Bradley Both | C17: BR
A18: 3 | B18: Cononley | C18: Con
A19: 4 | B19: East Morton | C19: EM
A20: 5 | B20: Eastburn | C20: Eb
A21: 6 | B21: Eastwood | C21: Ea
A22: 7 | B22: Haworth | C22: Ha
A23: 8 | B23: Harden | C23: Har
A24: 9 | B24: Holycroft | C24: Hol
A25: 10 | B25: Hothfield | C25: Hot
A26: 11 | B26: Merlin Top | C26: MT
A27: 12 | B27: Nessfield | C27: Ne
A28: 13 | B28: Oakworth | C28: Oa
A29: 14 | B29: Oxenhope | C29: Ox
A30: 15 | B30: St Annes | C30: StA
A31: 16 | B31: St Josephs | C31: StJ
A32: 17 | B32: St Stephen | C32: StS
A33: 18 | B33: Stanbury | C33: Stan
A34: 19 | B34: Steeton | C34: Ste
A35: 20 | B35: Thackley | C35: Thack
A36: 21 | B36: Wilsden | C36: Wi
A37: 1 | B37: Home Schooled | C37: HS
A38: 2 | B38: Skipton Academy | C38: SkA
A39: 3 | B39: Immanuel College | C39: Im
A40: 4 | B40: UAK | C40: UAK
A41: 5 | B41: Ingrow | C41: In
A42: 6 | B42: Crossflatts | C42: XF

Sheet Barcodes (hidden)
B6: ='Print Template'!A3 -> xx01 | D6: ='Print Template'!A11 -> xx02 | R6: 0 | S6: space | U6: 0 | V6: 0032 or 0212 / 252 | W6: Space or Ô / ü | X6: 11011001100 | Y6: 212222
B7: Barcode 1 | D7: Barcode 2 | R7: 1 | S7: ! | T7: ! | U7: 1 | V7: 33 | W7: ! | X7: 11001101100 | Y7: 222122
R8: 2 | S8: " | T8: " | U8: 2 | V8: 34 | W8: " | X8: 11001100110 | Y8: 222221
B9: =CONCATENATE(B6," ") -> xx01 | D9: =CONCATENATE(D6," ") -> xx02 | R9: 3 | S9: # | T9: # | U9: 3 | V9: 35 | W9: # | X9: 10010011000 | Y9: 121223
R10: 4 | S10: $ | T10: $ | U10: 4 | V10: 36 | W10: $ | X10: 10010001100 | Y10: 121322
B11: Blank | C11: 0 | D11: Blank | E11: 0 | R11: 5 | S11: % | T11: % | U11: 5 | V11: 37 | W11: % | X11: 10001001100 | Y11: 131222
B12: 0000000000 | C12: 0 | D12: 0000000000 | E12: 0 | R12: 6 | S12: & | T12: & | U12: 6 | V12: 38 | W12: & | X12: 10011001000 | Y12: 122213
C13: 0 | E13: 0 | R13: 7 | S13: ' | T13: ' | U13: 7 | V13: 39 | W13: ' | X13: 10011000100 | Y13: 122312
C14: 0 | E14: 0 | R14: 8 | S14: ( | T14: ( | U14: 8 | V14: 40 | W14: ( | X14: 10001100100 | Y14: 132212
C15: 0 | E15: 0 | R15: 9 | S15: ) | T15: ) | U15: 9 | V15: 41 | W15: ) | X15: 11001001000 | Y15: 221213
C16: 0 | E16: 0 | R16: 10 | S16: * | T16: * | U16: 10 | V16: 42 | W16: * | X16: 11001000100 | Y16: 221312
C17: 0 | E17: 0 | R17: 11 | S17: + | T17: + | U17: 11 | V17: 43 | W17: + | X17: 11000100100 | Y17: 231212
C18: 0 | E18: 0 | R18: 12 | S18: , | T18: , | U18: 12 | V18: 44 | W18: , | X18: 10110011100 | Y18: 112232
C19: 0 | E19: 0 | R19: 13 | S19: - | T19: - | U19: 13 | V19: 45 | W19: - | X19: 10011011100 | Y19: 122132
C20: 0 | E20: 0 | R20: 14 | S20: . | T20: . | U20: 14 | V20: 46 | W20: . | X20: 10011001110 | Y20: 122231
C21: 0 | E21: 0 | R21: 15 | S21: / | T21: / | U21: 15 | V21: 47 | W21: / | X21: 10111001100 | Y21: 113222
B22: Start B | C22: =VALUE(LEFT(B23,1)) -> 1 | D22: Start B | E22: =VALUE(LEFT(D23,1)) -> 1 | R22: 16 | S22: 0 | T22: 0 | U22: 16 | V22: 48 | W22: 0 | X22: 10011101100 | Y22: 123122
B23: 11010010000 | C23: =VALUE(MID(B23,2,1)) -> 1 | D23: 11010010000 | E23: =VALUE(MID(D23,2,1)) -> 1 | R23: 17 | S23: 1 | T23: 1 | U23: 17 | V23: 49 | W23: 1 | X23: 10011100110 | Y23: 123221
B24: 1 | C24: =VALUE(MID(B23,3,1)) -> 0 | D24: 1 | E24: =VALUE(MID(D23,3,1)) -> 0 | R24: 18 | S24: 2 | T24: 2 | U24: 18 | V24: 50 | W24: 2 | X24: 11001110010 | Y24: 223211
B25: 104 | C25: =VALUE(MID(B23,4,1)) -> 1 | D25: 104 | E25: =VALUE(MID(D23,4,1)) -> 1 | R25: 19 | S25: 3 | T25: 3 | U25: 19 | V25: 51 | W25: 3 | X25: 11001011100 | Y25: 221132
B26: =B24*B25 -> 104 | C26: =VALUE(MID(B23,5,1)) -> 0 | D26: =D24*D25 -> 104 | E26: =VALUE(MID(D23,5,1)) -> 0 | R26: 20 | S26: 4 | T26: 4 | U26: 20 | V26: 52 | W26: 4 | X26: 11001001110 | Y26: 221231
C27: =VALUE(MID(B23,6,1)) -> 0 | E27: =VALUE(MID(D23,6,1)) -> 0 | R27: 21 | S27: 5 | T27: 5 | U27: 21 | V27: 53 | W27: 5 | X27: 11011100100 | Y27: 213212
C28: =VALUE(MID(B23,7,1)) -> 1 | E28: =VALUE(MID(D23,7,1)) -> 1 | R28: 22 | S28: 6 | T28: 6 | U28: 22 | V28: 54 | W28: 6 | X28: 11001110100 | Y28: 223112
C29: =VALUE(MID(B23,8,1)) -> 0 | E29: =VALUE(MID(D23,8,1)) -> 0 | R29: 23 | S29: 7 | T29: 7 | U29: 23 | V29: 55 | W29: 7 | X29: 11101101110 | Y29: 312131
C30: =VALUE(MID(B23,9,1)) -> 0 | E30: =VALUE(MID(D23,9,1)) -> 0 | R30: 24 | S30: 8 | T30: 8 | U30: 24 | V30: 56 | W30: 8 | X30: 11101001100 | Y30: 311222
C31: =VALUE(MID(B23,10,1)) -> 0 | E31: =VALUE(MID(D23,10,1)) -> 0 | R31: 25 | S31: 9 | T31: 9 | U31: 25 | V31: 57 | W31: 9 | X31: 11100101100 | Y31: 321122
C32: =VALUE(MID(B23,11,1)) -> 0 | E32: =VALUE(MID(D23,11,1)) -> 0 | R32: 26 | S32: : | T32: : | U32: 26 | V32: 58 | W32: : | X32: 11100100110 | Y32: 321221
B33: =MID($B$9,1,1) -> x | C33: =VALUE(LEFT(B34,1)) -> 1 | D33: =MID($D$9,1,1) -> x | E33: =VALUE(LEFT(D34,1)) -> 1 | R33: 27 | S33: ; | T33: ; | U33: 27 | V33: 59 | W33: ; | X33: 11101100100 | Y33: 312212
B34: =VLOOKUP(B33,$T$6:$Y$108,5,FALSE) -> 11100010110 | C34: =VALUE(MID(B34,2,1)) -> 1 | D34: =VLOOKUP(D33,$T$6:$Y$108,5,FALSE) -> 11100010110 | E34: =VALUE(MID(D34,2,1)) -> 1 | R34: 28 | S34: < | T34: < | U34: 28 | V34: 60 | W34: < | X34: 11100110100 | Y34: 322112
B35: 1 | C35: =VALUE(MID(B34,3,1)) -> 1 | D35: 1 | E35: =VALUE(MID(D34,3,1)) -> 1 | R35: 29 | S35: = | T35: = | U35: 29 | V35: 61 | W35: = | X35: 11100110010 | Y35: 322211
B36: =VLOOKUP(B33,$T$6:$Y$108,2,FALSE) -> 56 | C36: =VALUE(MID(B34,4,1)) -> 0 | D36: =VLOOKUP(D33,$T$6:$Y$108,2,FALSE) -> 56 | E36: =VALUE(MID(D34,4,1)) -> 0 | R36: 30 | S36: > | T36: > | U36: 30 | V36: 62 | W36: > | X36: 11011011000 | Y36: 212123
B37: =B35*B36 -> 56 | C37: =VALUE(MID(B34,5,1)) -> 0 | D37: =D35*D36 -> 56 | E37: =VALUE(MID(D34,5,1)) -> 0 | R37: 31 | S37: ? | T37: ? | U37: 31 | V37: 63 | W37: ? | X37: 11011000110 | Y37: 212321
C38: =VALUE(MID(B34,6,1)) -> 0 | E38: =VALUE(MID(D34,6,1)) -> 0 | R38: 32 | S38: @ | T38: @ | U38: 32 | V38: 64 | W38: @ | X38: 11000110110 | Y38: 232121
C39: =VALUE(MID(B34,7,1)) -> 1 | E39: =VALUE(MID(D34,7,1)) -> 1 | R39: 33 | S39: A | T39: A | U39: 33 | V39: 65 | W39: A | X39: 10100011000 | Y39: 111323
C40: =VALUE(MID(B34,8,1)) -> 0 | E40: =VALUE(MID(D34,8,1)) -> 0 | R40: 34 | S40: B | T40: B | U40: 34 | V40: 66 | W40: B | X40: 10001011000 | Y40: 131123
C41: =VALUE(MID(B34,9,1)) -> 1 | E41: =VALUE(MID(D34,9,1)) -> 1 | R41: 35 | S41: C | T41: C | U41: 35 | V41: 67 | W41: C | X41: 10001000110 | Y41: 131321
C42: =VALUE(MID(B34,10,1)) -> 1 | E42: =VALUE(MID(D34,10,1)) -> 1 | R42: 36 | S42: D | T42: D | U42: 36 | V42: 68 | W42: D | X42: 10110001000 | Y42: 112313
C43: =VALUE(MID(B34,11,1)) -> 0 | E43: =VALUE(MID(D34,11,1)) -> 0 | R43: 37 | S43: E | T43: E | U43: 37 | V43: 69 | W43: E | X43: 10001101000 | Y43: 132113
B44: =MID($B$9,2,1) -> x | C44: =VALUE(LEFT(B45,1)) -> 1 | D44: =MID(D$9,2,1) -> x | E44: =VALUE(LEFT(D45,1)) -> 1 | R44: 38 | S44: F | T44: F | U44: 38 | V44: 70 | W44: F | X44: 10001100010 | Y44: 132311
B45: =VLOOKUP(B44,$T$6:$Y$108,5,FALSE) -> 11100010110 | C45: =VALUE(MID(B45,2,1)) -> 1 | D45: =VLOOKUP(D44,$T$6:$Y$108,5,FALSE) -> 11100010110 | E45: =VALUE(MID(D45,2,1)) -> 1 | R45: 39 | S45: G | T45: G | U45: 39 | V45: 71 | W45: G | X45: 11010001000 | Y45: 211313
B46: 2 | C46: =VALUE(MID(B45,3,1)) -> 1 | D46: 2 | E46: =VALUE(MID(D45,3,1)) -> 1 | R46: 40 | S46: H | T46: H | U46: 40 | V46: 72 | W46: H | X46: 11000101000 | Y46: 231113
B47: =VLOOKUP(B44,$T$6:$Y$108,2,FALSE) -> 56 | C47: =VALUE(MID(B45,4,1)) -> 0 | D47: =VLOOKUP(D44,$T$6:$Y$108,2,FALSE) -> 56 | E47: =VALUE(MID(D45,4,1)) -> 0 | R47: 41 | S47: I | T47: I | U47: 41 | V47: 73 | W47: I | X47: 11000100010 | Y47: 231311
B48: =B46*B47 -> 112 | C48: =VALUE(MID(B45,5,1)) -> 0 | D48: =D46*D47 -> 112 | E48: =VALUE(MID(D45,5,1)) -> 0 | R48: 42 | S48: J | T48: J | U48: 42 | V48: 74 | W48: J | X48: 10110111000 | Y48: 112133
C49: =VALUE(MID(B45,6,1)) -> 0 | E49: =VALUE(MID(D45,6,1)) -> 0 | R49: 43 | S49: K | T49: K | U49: 43 | V49: 75 | W49: K | X49: 10110001110 | Y49: 112331
C50: =VALUE(MID(B45,7,1)) -> 1 | E50: =VALUE(MID(D45,7,1)) -> 1 | R50: 44 | S50: L | T50: L | U50: 44 | V50: 76 | W50: L | X50: 10001101110 | Y50: 132131
C51: =VALUE(MID(B45,8,1)) -> 0 | E51: =VALUE(MID(D45,8,1)) -> 0 | R51: 45 | S51: M | T51: M | U51: 45 | V51: 77 | W51: M | X51: 10111011000 | Y51: 113123
C52: =VALUE(MID(B45,9,1)) -> 1 | E52: =VALUE(MID(D45,9,1)) -> 1 | R52: 46 | S52: N | T52: N | U52: 46 | V52: 78 | W52: N | X52: 10111000110 | Y52: 113321
C53: =VALUE(MID(B45,10,1)) -> 1 | E53: =VALUE(MID(D45,10,1)) -> 1 | R53: 47 | S53: O | T53: O | U53: 47 | V53: 79 | W53: O | X53: 10001110110 | Y53: 133121
C54: =VALUE(MID(B45,11,1)) -> 0 | E54: =VALUE(MID(D45,11,1)) -> 0 | R54: 48 | S54: P | T54: P | U54: 48 | V54: 80 | W54: P | X54: 11101110110 | Y54: 313121
B55: =MID($B$9,3,1) -> 0 | C55: =VALUE(LEFT(B56,1)) -> 1 | D55: =MID(D$9,3,1) -> 0 | E55: =VALUE(LEFT(D56,1)) -> 1 | R55: 49 | S55: Q | T55: Q | U55: 49 | V55: 81 | W55: Q | X55: 11010001110 | Y55: 211331
B56: =VLOOKUP(B55,$T$6:$Y$108,5,FALSE) -> 10011101100 | C56: =VALUE(MID(B56,2,1)) -> 0 | D56: =VLOOKUP(D55,$T$6:$Y$108,5,FALSE) -> 10011101100 | E56: =VALUE(MID(D56,2,1)) -> 0 | R56: 50 | S56: R | T56: R | U56: 50 | V56: 82 | W56: R | X56: 11000101110 | Y56: 231131
B57: =B46+1 -> 3 | C57: =VALUE(MID(B56,3,1)) -> 0 | D57: =D46+1 -> 3 | E57: =VALUE(MID(D56,3,1)) -> 0 | R57: 51 | S57: S | T57: S | U57: 51 | V57: 83 | W57: S | X57: 11011101000 | Y57: 213113
B58: =VLOOKUP(B55,$T$6:$Y$108,2,FALSE) -> 16 | C58: =VALUE(MID(B56,4,1)) -> 1 | D58: =VLOOKUP(D55,$T$6:$Y$108,2,FALSE) -> 16 | E58: =VALUE(MID(D56,4,1)) -> 1 | R58: 52 | S58: T | T58: T | U58: 52 | V58: 84 | W58: T | X58: 11011100010 | Y58: 213311
B59: =B57*B58 -> 48 | C59: =VALUE(MID(B56,5,1)) -> 1 | D59: =D57*D58 -> 48 | E59: =VALUE(MID(D56,5,1)) -> 1 | R59: 53 | S59: U | T59: U | U59: 53 | V59: 85 | W59: U | X59: 11011101110 | Y59: 213131
C60: =VALUE(MID(B56,6,1)) -> 1 | E60: =VALUE(MID(D56,6,1)) -> 1 | R60: 54 | S60: V | T60: V | U60: 54 | V60: 86 | W60: V | X60: 11101011000 | Y60: 311123
C61: =VALUE(MID(B56,7,1)) -> 0 | E61: =VALUE(MID(D56,7,1)) -> 0 | R61: 55 | S61: W | T61: W | U61: 55 | V61: 87 | W61: W | X61: 11101000110 | Y61: 311321
C62: =VALUE(MID(B56,8,1)) -> 1 | E62: =VALUE(MID(D56,8,1)) -> 1 | R62: 56 | S62: X | T62: X | U62: 56 | V62: 88 | W62: X | X62: 11100010110 | Y62: 331121
C63: =VALUE(MID(B56,9,1)) -> 1 | E63: =VALUE(MID(D56,9,1)) -> 1 | R63: 57 | S63: Y | T63: Y | U63: 57 | V63: 89 | W63: Y | X63: 11101101000 | Y63: 312113
C64: =VALUE(MID(B56,10,1)) -> 0 | E64: =VALUE(MID(D56,10,1)) -> 0 | R64: 58 | S64: Z | T64: Z | U64: 58 | V64: 90 | W64: Z | X64: 11101100010 | Y64: 312311
C65: =VALUE(MID(B56,11,1)) -> 0 | E65: =VALUE(MID(D56,11,1)) -> 0 | R65: 59 | S65: [ | T65: [ | U65: 59 | V65: 91 | W65: [ | X65: 11100011010 | Y65: 332111
B66: =MID($B$9,4,1) -> 1 | C66: =VALUE(LEFT(B67,1)) -> 1 | D66: =MID(D$9,4,1) -> 2 | E66: =VALUE(LEFT(D67,1)) -> 1 | G66: =1+D66 -> 3 | R66: 60 | S66: \ | T66: \ | U66: 60 | V66: 92 | W66: \ | X66: 11101111010 | Y66: 314111
B67: =VLOOKUP(B66,$T$6:$Y$108,5,FALSE) -> 10011100110 | C67: =VALUE(MID(B67,2,1)) -> 0 | D67: =VLOOKUP(D66,$T$6:$Y$108,5,FALSE) -> 11001110010 | E67: =VALUE(MID(D67,2,1)) -> 1 | R67: 61 | S67: ] | T67: ] | U67: 61 | V67: 93 | W67: ] | X67: 11001000010 | Y67: 221411
B68: =B57+1 -> 4 | C68: =VALUE(MID(B67,3,1)) -> 0 | D68: =D57+1 -> 4 | E68: =VALUE(MID(D67,3,1)) -> 0 | R68: 62 | S68: ^ | T68: ^ | U68: 62 | V68: 94 | W68: ^ | X68: 11110001010 | Y68: 431111
B69: =VLOOKUP(B66,$T$6:$Y$108,2,FALSE) -> 17 | C69: =VALUE(MID(B67,4,1)) -> 1 | D69: =VLOOKUP(D66,$T$6:$Y$108,2,FALSE) -> 18 | E69: =VALUE(MID(D67,4,1)) -> 0 | R69: 63 | S69: _ | T69: _ | U69: 63 | V69: 95 | W69: _ | X69: 10100110000 | Y69: 111224
B70: =B68*B69 -> 68 | C70: =VALUE(MID(B67,5,1)) -> 1 | D70: =D68*D69 -> 72 | E70: =VALUE(MID(D67,5,1)) -> 1 | R70: 64 | S70: NUL | T70: ` | U70: 64 | V70: 96 | W70: ` | X70: 10100001100 | Y70: 111422
C71: =VALUE(MID(B67,6,1)) -> 1 | E71: =VALUE(MID(D67,6,1)) -> 1 | R71: 65 | S71: SOH | T71: a | U71: 65 | V71: 97 | W71: a | X71: 10010110000 | Y71: 121124
C72: =VALUE(MID(B67,7,1)) -> 0 | E72: =VALUE(MID(D67,7,1)) -> 1 | R72: 66 | S72: STX | T72: b | U72: 66 | V72: 98 | W72: b | X72: 10010000110 | Y72: 121421
C73: =VALUE(MID(B67,8,1)) -> 0 | E73: =VALUE(MID(D67,8,1)) -> 0 | R73: 67 | S73: ETX | T73: c | U73: 67 | V73: 99 | W73: c | X73: 10000101100 | Y73: 141122
C74: =VALUE(MID(B67,9,1)) -> 1 | E74: =VALUE(MID(D67,9,1)) -> 0 | R74: 68 | S74: EOT | T74: d | U74: 68 | V74: 100 | W74: d | X74: 10000100110 | Y74: 141221
C75: =VALUE(MID(B67,10,1)) -> 1 | E75: =VALUE(MID(D67,10,1)) -> 1 | R75: 69 | S75: ENQ | T75: e | U75: 69 | V75: 101 | W75: e | X75: 10110010000 | Y75: 112214
C76: =VALUE(MID(B67,11,1)) -> 0 | E76: =VALUE(MID(D67,11,1)) -> 0 | J76: "" | K76: "" | R76: 70 | S76: ACK | T76: f | U76: 70 | V76: 102 | W76: f | X76: 10110000100 | Y76: 112412
B77: =MID($B$9,5,1) ->  | C77: =VALUE(LEFT(B78,1)) -> 1 | D77: =MID(D$9,5,1) ->  | E77: =VALUE(LEFT(D78,1)) -> 1 | I77: 1 | J77: a | K77: =VLOOKUP(D88,I77:J85,2,FALSE) -> d | R77: 71 | S77: BEL | T77: g | U77: 71 | V77: 103 | W77: g | X77: 10011010000 | Y77: 122114
B78: =VLOOKUP(B77,$T$6:$Y$108,5,FALSE) -> 11011001100 | C78: =VALUE(MID(B78,2,1)) -> 1 | D78: =VLOOKUP(D77,$T$6:$Y$108,5,FALSE) -> 11011001100 | E78: =VALUE(MID(D78,2,1)) -> 1 | I78: 2 | J78: b | R78: 72 | S78: BS | T78: h | U78: 72 | V78: 104 | W78: h | X78: 10011000010 | Y78: 122411
B79: =B68+1 -> 5 | C79: =VALUE(MID(B78,3,1)) -> 0 | D79: =D68+1 -> 5 | E79: =VALUE(MID(D78,3,1)) -> 0 | I79: 3 | J79: c | R79: 73 | S79: HT | T79: i | U79: 73 | V79: 105 | W79: i | X79: 10000110100 | Y79: 142112
B80: =VLOOKUP(B77,$T$6:$Y$108,2,FALSE) -> 0 | C80: =VALUE(MID(B78,4,1)) -> 1 | D80: =VLOOKUP(D77,$T$6:$Y$108,2,FALSE) -> 0 | E80: =VALUE(MID(D78,4,1)) -> 1 | J80: d | R80: 74 | S80: LF | T80: j | U80: 74 | V80: 106 | W80: j | X80: 10000110010 | Y80: 142211
B81: =B79*B80 -> 0 | C81: =VALUE(MID(B78,5,1)) -> 1 | D81: =D79*D80 -> 0 | E81: =VALUE(MID(D78,5,1)) -> 1 | I81: 5 | J81: e | R81: 75 | S81: VT | T81: k | U81: 75 | V81: 107 | W81: k | X81: 11000010010 | Y81: 241211
C82: =VALUE(MID(B78,6,1)) -> 0 | E82: =VALUE(MID(D78,6,1)) -> 0 | I82: 6 | J82: f | R82: 76 | S82: FF | T82: l | U82: 76 | V82: 108 | W82: l | X82: 11001010000 | Y82: 221114
C83: =VALUE(MID(B78,7,1)) -> 0 | E83: =VALUE(MID(D78,7,1)) -> 0 | I83: 7 | J83: g | R83: 77 | S83: CR | T83: m | U83: 77 | V83: 109 | W83: m | X83: 11110111010 | Y83: 413111
C84: =VALUE(MID(B78,8,1)) -> 1 | E84: =VALUE(MID(D78,8,1)) -> 1 | I84: 8 | J84: h | R84: 78 | S84: SO | T84: n | U84: 78 | V84: 110 | W84: n | X84: 11000010100 | Y84: 241112
C85: =VALUE(MID(B78,9,1)) -> 1 | E85: =VALUE(MID(D78,9,1)) -> 1 | I85: 8 | J85: i | R85: 79 | S85: SI | T85: o | U85: 79 | V85: 111 | W85: o | X85: 10001111010 | Y85: 134111
C86: =VALUE(MID(B78,10,1)) -> 0 | E86: =VALUE(MID(D78,10,1)) -> 0 | R86: 80 | S86: DLE | T86: p | U86: 80 | V86: 112 | W86: p | X86: 10100111100 | Y86: 111242
C87: =VALUE(MID(B78,11,1)) -> 0 | E87: =VALUE(MID(D78,11,1)) -> 0 | R87: 81 | S87: DC1 | T87: q | U87: 81 | V87: 113 | W87: q | X87: 10010111100 | Y87: 121142
B88: =MID($B$9,6,1) ->  | C88: =VALUE(LEFT(B89,1)) -> 1 | D88: =MID(D$9,6,1) ->  | E88: =VALUE(LEFT(D89,1)) -> 1 | R88: 82 | S88: DC2 | T88: r | U88: 82 | V88: 114 | W88: r | X88: 10010011110 | Y88: 121241
B89: =VLOOKUP(B88,$T$6:$Y$108,5,FALSE) -> 11011001100 | C89: =VALUE(MID(B89,2,1)) -> 1 | D89: =VLOOKUP(D88,$T$6:$Y$108,5,FALSE) -> 11011001100 | E89: =VALUE(MID(D89,2,1)) -> 1 | R89: 83 | S89: DC3 | T89: s | U89: 83 | V89: 115 | W89: s | X89: 10111100100 | Y89: 114212
B90: =B79+1 -> 6 | C90: =VALUE(MID(B89,3,1)) -> 0 | D90: =D79+1 -> 6 | E90: =VALUE(MID(D89,3,1)) -> 0 | R90: 84 | S90: DC4 | T90: t | U90: 84 | V90: 116 | W90: t | X90: 10011110100 | Y90: 124112
B91: =VLOOKUP(B88,$T$6:$Y$108,2,FALSE) -> 0 | C91: =VALUE(MID(B89,4,1)) -> 1 | D91: =VLOOKUP(D88,$T$6:$Y$108,2,FALSE) -> 0 | E91: =VALUE(MID(D89,4,1)) -> 1 | R91: 85 | S91: NAK | T91: u | U91: 85 | V91: 117 | W91: u | X91: 10011110010 | Y91: 124211
B92: =B90*B91 -> 0 | C92: =VALUE(MID(B89,5,1)) -> 1 | D92: =D90*D91 -> 0 | E92: =VALUE(MID(D89,5,1)) -> 1 | R92: 86 | S92: SYN | T92: v | U92: 86 | V92: 118 | W92: v | X92: 11110100100 | Y92: 411212
C93: =VALUE(MID(B89,6,1)) -> 0 | E93: =VALUE(MID(D89,6,1)) -> 0 | R93: 87 | S93: ETB | T93: w | U93: 87 | V93: 119 | W93: w | X93: 11110010100 | Y93: 421112
C94: =VALUE(MID(B89,7,1)) -> 0 | E94: =VALUE(MID(D89,7,1)) -> 0 | R94: 88 | S94: CAN | T94: x | U94: 88 | V94: 120 | W94: x | X94: 11110010010 | Y94: 421211
C95: =VALUE(MID(B89,8,1)) -> 1 | E95: =VALUE(MID(D89,8,1)) -> 1 | R95: 89 | S95: EM | T95: y | U95: 89 | V95: 121 | W95: y | X95: 11011011110 | Y95: 212141
C96: =VALUE(MID(B89,9,1)) -> 1 | E96: =VALUE(MID(D89,9,1)) -> 1 | R96: 90 | S96: SUB | T96: z | U96: 90 | V96: 122 | W96: z | X96: 11011110110 | Y96: 214121
C97: =VALUE(MID(B89,10,1)) -> 0 | E97: =VALUE(MID(D89,10,1)) -> 0 | R97: 91 | S97: ESC | T97: { | U97: 91 | V97: 123 | W97: { | X97: 11110110110 | Y97: 412121
C98: =VALUE(MID(B89,11,1)) -> 0 | E98: =VALUE(MID(D89,11,1)) -> 0 | R98: 92 | S98: FS | T98: | | U98: 92 | V98: 124 | W98: | | X98: 10101111000 | Y98: 111143
B99: =MID($B$9,7,1) ->  | C99: =VALUE(LEFT(B100,1)) -> 1 | D99: =MID(D$9,7,1) ->  | E99: =VALUE(LEFT(D100,1)) -> 1 | R99: 93 | S99: GS | T99: } | U99: 93 | V99: 125 | W99: } | X99: 10100011110 | Y99: 111341
B100: =VLOOKUP(B99,$T$6:$Y$108,5,FALSE) -> 11011001100 | C100: =VALUE(MID(B100,2,1)) -> 1 | D100: =VLOOKUP(D99,$T$6:$Y$108,5,FALSE) -> 11011001100 | E100: =VALUE(MID(D100,2,1)) -> 1 | R100: 94 | S100: RS | T100: ~ | U100: 94 | V100: 126 | W100: ~ | X100: 10001011110 | Y100: 131141
B101: =B90+1 -> 7 | C101: =VALUE(MID(B100,3,1)) -> 0 | D101: =D90+1 -> 7 | E101: =VALUE(MID(D100,3,1)) -> 0 | R101: 95 | S101: US | T101: DEL | U101: 95 | V101: 200 / 240 | W101: È / ð | X101: 10111101000 | Y101: 114113
B102: =VLOOKUP(B99,$T$6:$Y$108,2,FALSE) -> 0 | C102: =VALUE(MID(B100,4,1)) -> 1 | D102: =VLOOKUP(D99,$T$6:$Y$108,2,FALSE) -> 0 | E102: =VALUE(MID(D100,4,1)) -> 1 | R102: 96 | S102: FNC 3 | T102: FNC 3 | U102: 96 | V102: 201 / 241 | W102: É / ñ | X102: 10111100010 | Y102: 114311
B103: =B101*B102 -> 0 | C103: =VALUE(MID(B100,5,1)) -> 1 | D103: =D101*D102 -> 0 | E103: =VALUE(MID(D100,5,1)) -> 1 | G103: = | R103: 97 | S103: FNC 2 | T103: FNC 2 | U103: 97 | V103: 202 / 242 | W103: Ê / ò | X103: 11110101000 | Y103: 411113
C104: =VALUE(MID(B100,6,1)) -> 0 | E104: =VALUE(MID(D100,6,1)) -> 0 | R104: 98 | S104: Shift B | T104: Shift A | U104: 98 | V104: 203 / 243 | W104: Ë / ó | X104: 11110100010 | Y104: 411311
C105: =VALUE(MID(B100,7,1)) -> 0 | E105: =VALUE(MID(D100,7,1)) -> 0 | R105: 99 | S105: Code C | T105: Code C | U105: 99 | V105: 204 / 244 | W105: Ì / ô | X105: 10111011110 | Y105: 113141
C106: =VALUE(MID(B100,8,1)) -> 1 | E106: =VALUE(MID(D100,8,1)) -> 1 | R106: 100 | S106: Code B | T106: FNC 4 | U106: Code B | V106: 205 / 245 | W106: Í / õ | X106: 10111101110 | Y106: 114131
C107: =VALUE(MID(B100,9,1)) -> 1 | E107: =VALUE(MID(D100,9,1)) -> 1 | R107: 101 | S107: FNC 4 | T107: Code A | U107: Code A | V107: 206 / 246 | W107: Î / ö | X107: 11101011110 | Y107: 311141
C108: =VALUE(MID(B100,10,1)) -> 0 | E108: =VALUE(MID(D100,10,1)) -> 0 | R108: 102 | S108: FNC 1 | T108: FNC 1 | U108: FNC 1 | V108: 207 / 247 | W108: Ï / ÷ | X108: 11110101110 | Y108: 411131
C109: =VALUE(MID(B100,11,1)) -> 0 | E109: =VALUE(MID(D100,11,1)) -> 0 | R109: 103 | S109: Start Code A | V109: 208 / 248 | W109: Ð / ø | X109: 11010000100 | Y109: 211412
B110: Checksum | C110: =VALUE(LEFT(B113,1)) -> 1 | D110: Checksum | E110: =VALUE(LEFT(D113,1)) -> 1 | R110: 104 | S110: Start Code B | V110: 209 / 249 | W110: Ñ / ù | X110: 11010010000 | Y110: 211214
B111: =B26+B37+B48+B59+B70+B81+B92+B103 -> 388 | C111: =VALUE(MID(B113,2,1)) -> 0 | D111: =D26+D37+D48+D59+D70+D81+D92+D103 -> 392 | E111: =VALUE(MID(D113,2,1)) -> 0 | R111: 105 | S111: Start Code C | V111: 210 / 250 | W111: Ò / ú | X111: 11010011100 | Y111: 211232
B112: =MOD(B111,103) -> 79 | C112: =VALUE(MID(B113,3,1)) -> 0 | D112: =MOD(D111,103) -> 83 | E112: =VALUE(MID(D113,3,1)) -> 1 | R112: 106 | S112: Stop (7 bars/spaces) | V112: 211 / 251 | W112: Ó / û | X112: 1100011101011 | Y112: 2331112
B113: =VLOOKUP(B112,$R$6:$Y$108,7,FALSE) -> 10001111010 | C113: =VALUE(MID(B113,4,1)) -> 0 | D113: =VLOOKUP(D112,$R$6:$Y$108,7,FALSE) -> 10111100100 | E113: =VALUE(MID(D113,4,1)) -> 1 | R113: — | S113: Reverse Stop | V113: — | W113: — | X113: 11010111000 | Y113: 211133
C114: =VALUE(MID(B113,5,1)) -> 1 | E114: =VALUE(MID(D113,5,1)) -> 1 | S114: used to detect reading right to left
C115: =VALUE(MID(B113,6,1)) -> 1 | E115: =VALUE(MID(D113,6,1)) -> 1
C116: =VALUE(MID(B113,7,1)) -> 1 | E116: =VALUE(MID(D113,7,1)) -> 0
C117: =VALUE(MID(B113,8,1)) -> 1 | E117: =VALUE(MID(D113,8,1)) -> 0
C118: =VALUE(MID(B113,9,1)) -> 0 | E118: =VALUE(MID(D113,9,1)) -> 1
C119: =VALUE(MID(B113,10,1)) -> 1 | E119: =VALUE(MID(D113,10,1)) -> 0
C120: =VALUE(MID(B113,11,1)) -> 0 | E120: =VALUE(MID(D113,11,1)) -> 0
B121: Stop | C121: =VALUE(LEFT(B122,1)) -> 1 | D121: Stop | E121: =VALUE(LEFT(D122,1)) -> 1
B122: 1100011101011 | C122: =VALUE(MID(B122,2,1)) -> 1 | D122: 1100011101011 | E122: =VALUE(MID(D122,2,1)) -> 1
C123: =VALUE(MID(B122,3,1)) -> 0 | E123: =VALUE(MID(D122,3,1)) -> 0
C124: =VALUE(MID(B122,4,1)) -> 0 | E124: =VALUE(MID(D122,4,1)) -> 0
C125: =VALUE(MID(B122,5,1)) -> 0 | E125: =VALUE(MID(D122,5,1)) -> 0
C126: =VALUE(MID(B122,6,1)) -> 1 | E126: =VALUE(MID(D122,6,1)) -> 1
C127: =VALUE(MID(B122,7,1)) -> 1 | E127: =VALUE(MID(D122,7,1)) -> 1
C128: =VALUE(MID(B122,8,1)) -> 1 | E128: =VALUE(MID(D122,8,1)) -> 1
C129: =VALUE(MID(B122,9,1)) -> 0 | E129: =VALUE(MID(D122,9,1)) -> 0
C130: =VALUE(MID(B122,10,1)) -> 1 | E130: =VALUE(MID(D122,10,1)) -> 1
C131: =VALUE(MID(B122,11,1)) -> 0 | E131: =VALUE(MID(D122,11,1)) -> 0
C132: =VALUE(MID(B122,12,1)) -> 1 | E132: =VALUE(MID(D122,12,1)) -> 1
C133: =VALUE(MID(B122,13,1)) -> 1 | E133: =VALUE(MID(D122,13,1)) -> 1
B134: Blank | C134: 0 | D134: Blank | E134: 0
B135: 0000000000 | C135: 0 | D135: 0000000000 | E135: 0
C136: 0 | E136: 0
C137: 0 | E137: 0
C138: 0 | E138: 0
C139: 0 | E139: 0
C140: 0 | E140: 0
C141: 0 | E141: 0
C142: 0 | E142: 0
C143: 0 | E143: 0
C144: 0 | E144: 0
